fUST/lending_fUST_20250214
["ID","MTS","AMOUNT","RATE_DAILY","PERIOD"]
[353087973,1739548233766,-500.0,0.00013698,2]
[353087974,1739548233776,-500.0,0.00013698,2]
[353087975,1739548233787,-500.0,0.00013698,2]
[353087976,1739548233797,-500.0,0.00013698,2]
[353087977,1739548233806,-500.0,0.00013698,2]
[353087978,1739548233816,-500.0,0.00013698,2]
[353087979,1739548233826,-3328.97,0.00013698,2]
[353087980,1739548233836,-554.53,0.00013698,2]
[353087981,1739548233846,-500.0,0.00013698,2]
[353087982,1739548233856,-500.0,0.00013698,2]
[353087983,1739548233866,-500.0,0.00013698,2]
[353087984,1739548233875,-1624.75,0.00013698,2]
[353087985,1739548233885,-500.0,0.00013698,2]
[353087986,1739548233895,-500.0,0.00013698,2]
[353087987,1739548233906,-500.0,0.00013698,2]
[353087988,1739548233916,-378.3472983,0.00013698,2]
[353087989,1739548233925,-501.50324051,0.00013698,2]
[353087990,1739548233935,-2491.72,0.00013698,2]
[353087991,1739548233945,-500.0,0.00013698,2]
[353087992,1739548233955,-567.37595507,0.00013698,2]
[353087993,1739548233964,-12461.74,0.00013698,2]
[353087994,1739548233974,-1112.42,0.00013698,2]
[353087995,1739548233983,-500.0,0.00013698,2]
[353087996,1739548233993,-502.52396816,0.00013698,2]
[353087997,1739548234003,-2263.22,0.00013698,2]
[353087998,1739548234012,-503.69583216,0.00013698,2]
[353087999,1739548234021,-569.51056396,0.00013698,2]
[353088000,1739548234031,-245.46080476,0.00013698,2]
[353088001,1739548234042,-500.0,0.00013698,2]
[353088002,1739548234051,-500.0,0.00013698,2]
[353088003,1739548234061,-1019.1788211,0.00013698,2]
[353088041,1739548238245,-2455.9311789,0.00013698,2]
[353088044,1739548238255,-655.86,0.00013698,2]
[353088046,1739548238265,-500.0,0.00013698,2]
[353088047,1739548238275,-500.46450138,0.00013698,2]
[353088050,1739548238287,-1157.13,0.00013698,2]
[353088051,1739548238297,-6874.62,0.00013698,2]
[353088053,1739548238307,-512.5487656,0.00013698,2]
[353088056,1739548238317,-500.0,0.00013698,2]
[353088057,1739548238328,-508.37930304,0.00013698,2]
[353088059,1739548238338,-500.0,0.00013698,2]
[353088061,1739548238348,-1175.37,0.00013698,2]
[353088063,1739548238359,-500.0,0.00013698,2]
[353088065,1739548238369,-500.0,0.00013698,2]
[353088067,1739548238378,-793.74,0.00013698,2]
[353088069,1739548238388,-500.0,0.00013698,2]
[353088071,1739548238398,-1060.4,0.00013698,2]
[353088073,1739548238408,-500.0,0.00013698,2]
[353088075,1739548238418,-17230.79,0.00013698,2]
[353088078,1739548238428,-500.0,0.00013698,2]
[353088079,1739548238438,-500.0,0.00013698,2]
[353088082,1739548238448,-40253.48,0.00013698,2]
[353088083,1739548238458,-500.0,0.00013698,2]
[353088086,1739548238468,-653.6,0.00013698,2]
[353088088,1739548238479,-500.0,0.00013698,2]
[353088089,1739548238488,-633.4016986,0.00013698,2]
[353088091,1739548238499,-4839.6,0.00013698,2]
[353088093,1739548238508,-3534.76,0.00013698,2]
[353088095,1739548238518,-500.0,0.00013698,2]
[353088097,1739548238528,-504.7252916,0.00013698,2]
[353088099,1739548238538,-500.0,0.00013698,2]
[353088101,1739548238548,-500.0,0.00013698,2]
[353088103,1739548238558,-1977.07,0.00013698,2]
[353088105,1739548238568,-500.0,0.00013698,2]
[353088107,1739548238579,-1832.21,0.00013698,2]
[353088109,1739548238588,-500.0,0.00013698,2]
[353088111,1739548238598,-629.69853506,0.00013698,2]
[353088113,1739548238608,-500.0,0.00013698,2]
[353088115,1739548238617,-500.0,0.00013698,2]
[353088117,1739548238627,-1838.34,0.00013698,2]
[353088119,1739548238637,-500.0,0.00013698,2]
[353088121,1739548238647,-314.69923021,0.00013698,2]
[353088123,1739548238658,-500.0,0.00013698,2]
[353088125,1739548238668,-1264.2,0.00013698,2]
[353088127,1739548238678,-500.0,0.00013698,2]
[353088129,1739548238688,-584.07,0.00013698,2]
[353088131,1739548238699,-1742.51,0.00013698,2]
[353088133,1739548238709,-441.86751855,0.00013698,2]
[353088135,1739548238719,-473.27003304,0.00013698,2]
[353088137,1739548238729,-500.0,0.00013698,2]
[353088139,1739548238739,-500.0,0.00013698,2]
[353088141,1739548238750,-500.0,0.00013698,2]
[353088143,1739548238760,-500.0,0.00013698,2]
[353088145,1739548238770,-500.0,0.00013698,2]
[353088147,1739548238780,-500.0,0.00013698,2]
[353088149,1739548238790,-500.0,0.00013698,2]
[353088151,1739548238800,-503.43145638,0.00013698,2]
[353088153,1739548238811,-500.0,0.00013698,2]
[353088155,1739548238820,-500.0,0.00013698,2]
[353088157,1739548238830,-500.0,0.00013698,2]
[353088159,1739548238840,-500.0,0.00013698,2]
[353088161,1739548238851,-500.0,0.00013698,2]
[353088163,1739548238860,-1213.81,0.00013698,2]
[353088165,1739548238870,-500.0,0.00013698,2]
[353088167,1739548238880,-628.0,0.00013698,2]
[353088169,1739548238889,-500.0,0.00013698,2]
[353088171,1739548238899,-500.0,0.00013698,2]
[353088172,1739548238910,-500.0,0.00013698,2]
[353088173,1739548238920,-500.0,0.00013698,2]
[353088174,1739548238931,-1982.88,0.00013698,2]
[353088175,1739548238940,-500.0,0.00013698,2]
[353088176,1739548238950,-500.0,0.00013698,2]
[353088177,1739548238960,-500.0,0.00013698,2]
[353088178,1739548238970,-500.0,0.00013698,2]
[353088179,1739548238979,-500.0,0.00013698,2]
[353088180,1739548238989,-500.0,0.00013698,2]
[353088181,1739548238999,-500.0,0.00013698,2]
[353088182,1739548239008,-500.0,0.00013698,2]
[353088183,1739548239017,-500.0,0.00013698,2]
[353088184,1739548239027,-500.0,0.00013698,2]
[353088185,1739548239036,-500.54986567,0.00013698,2]
[353088186,1739548239046,-500.0,0.00013698,2]
[353088187,1739548239055,-535.7,0.00013698,2]
[353088188,1739548239065,-500.0,0.00013698,2]
[353088189,1739548239076,-500.0,0.00013698,2]
[353088190,1739548239087,-3001.71,0.00013698,2]
[353088191,1739548239098,-500.0,0.00013698,2]
[353088192,1739548239108,-3026.8,0.00013698,2]
[353088193,1739548239119,-168.85498689,0.00013698,2]
[353088194,1739548239129,-500.0,0.00013698,2]
[353088195,1739548239139,-500.0,0.00013698,2]
[353088197,1739548239148,-500.0,0.00013698,2]
[353088199,1739548239158,-500.0,0.00013698,2]
[353088201,1739548239167,-502.89192412,0.00013698,2]
[353088203,1739548239177,-500.0,0.00013698,2]
[353088205,1739548239187,-500.0,0.00013698,2]
[353088207,1739548239197,-500.0,0.00013698,2]
[353088209,1739548239207,-747.42,0.00013698,2]
[353088211,1739548239217,-500.37,0.00013698,2]
[353088213,1739548239227,-1574.04,0.00013698,2]
[353088215,1739548239237,-7370.07,0.00013698,2]
[353088217,1739548239249,-500.0,0.00013698,2]
[353088219,1739548239259,-500.0,0.00013698,2]
[353088221,1739548239268,-500.0,0.00013698,2]
[353088223,1739548239278,-500.0,0.00013698,2]
[353088225,1739548239288,-1509.92,0.00013698,2]
[353088227,1739548239299,-556.96,0.00013698,2]
[353088229,1739548239309,-500.0,0.00013698,2]
[353088231,1739548239319,-500.0,0.00013698,2]
[353088233,1739548239330,-500.0,0.00013698,2]
[353088235,1739548239340,-500.0,0.00013698,2]
[353088237,1739548239350,-583.93392669,0.00013698,2]
[353088239,1739548239359,-3907.88,0.00013698,2]
[353088241,1739548239369,-500.0,0.00013698,2]
[353088243,1739548239379,-500.0,0.00013698,2]
[353088244,1739548239388,-500.0,0.00013698,2]
[353088245,1739548239398,-11942.5,0.00013698,2]
[353088247,1739548239407,-531.42,0.00013698,2]
[353088249,1739548239417,-496.923611,0.00013699,2]
[353088251,1739548239426,-801.312898,0.00013699,2]
[353088253,1739548239436,-500.0,0.00013699,2]
[353088255,1739548239445,-500.0,0.00013699,2]
[353088257,1739548239455,-500.0,0.00013699,2]
[353088259,1739548239465,-500.0,0.00013699,2]
[353088260,1739548239474,-500.0,0.00013699,2]
[353088262,1739548239484,-500.0,0.00013699,2]
[353088265,1739548239494,-500.0,0.00013699,2]
[353088266,1739548239504,-468.092898,0.00013699,2]
[353088268,1739548239514,-500.0,0.00013699,2]
[353088270,1739548239524,-500.0,0.00013699,2]
[353088272,1739548239533,-500.0,0.00013699,2]
[353088274,1739548239543,-155.75,0.000137,2]
[353088276,1739548239553,-155.75,0.000137,2]
[353088278,1739548239562,-155.75,0.000137,2]
[353088280,1739548239572,-155.75,0.000137,2]
[353088282,1739548239582,-155.75,0.000137,2]
[353088284,1739548239593,-155.75,0.000137,2]
[353088287,1739548239603,-155.75,0.000137,2]
[353088289,1739548239613,-155.75,0.000137,2]
[353088291,1739548239623,-155.75,0.000137,2]
[353088293,1739548239632,-155.75,0.000137,2]
[353088295,1739548239642,-155.75,0.000137,2]
[353088297,1739548239652,-155.75,0.000137,2]
[353088299,1739548239661,-155.75,0.000137,2]
[353088301,1739548239671,-155.75,0.000137,2]
[353088303,1739548239681,-155.75,0.000137,2]
[353088305,1739548239691,-625.51123241,0.0001378,2]
[353088307,1739548239701,-181.85589958,0.0001378,2]
[353088309,1739548239711,-503.88815816,0.0001378,2]
[353088311,1739548239721,-178.61536,0.0001378,2]
[353088313,1739548239730,-500.0,0.0001378,2]
[353088315,1739548239740,-500.0,0.0001378,2]
[353088317,1739548239750,-500.0,0.0001378,2]
[353088319,1739548239760,-500.0,0.0001378,2]
[353088321,1739548239769,-500.0,0.0001378,2]
[353088323,1739548239779,-224.02,0.0001378,2]
[353088325,1739548239789,-500.0,0.0001378,2]
[353088327,1739548239799,-500.0,0.0001378,2]
[353088329,1739548239810,-500.0,0.0001378,2]
[353088331,1739548239820,-500.0,0.0001378,2]
[353088333,1739548239829,-500.0,0.0001378,2]
[353088335,1739548239839,-500.0,0.0001378,2]
[353088337,1739548239848,-500.0,0.0001378,2]
[353088339,1739548239858,-885.72,0.0001378,2]
[353088341,1739548239868,-500.0,0.0001378,2]
[353088343,1739548239878,-500.0,0.0001378,2]
[353088345,1739548239888,-1423.12,0.0001378,2]
[353088347,1739548239898,-602.52,0.0001378,2]
[353088349,1739548239907,-1592.63,0.0001378,2]
[353088351,1739548239917,-513.8,0.0001378,2]
[353088353,1739548239927,-708.68,0.0001378,2]
[353088355,1739548239936,-500.0,0.0001378,2]
[353088356,1739548239945,-500.0,0.0001378,2]
[353088358,1739548239955,-500.0,0.0001378,2]
[353088360,1739548239965,-1231.32,0.0001378,2]
[353088362,1739548239975,-500.0,0.0001378,2]
[353088364,1739548239985,-500.0,0.0001378,2]
[353088366,1739548239995,-500.0,0.0001378,2]
[353088368,1739548240004,-500.0,0.0001378,2]
[353088370,1739548240014,-500.0,0.0001378,2]
[353088372,1739548240023,-1560.1,0.0001378,2]
[353088374,1739548240034,-500.0,0.0001378,2]
[353088376,1739548240044,-573.61,0.0001378,2]
[353088378,1739548240054,-500.0,0.0001378,2]
[353088380,1739548240063,-585.53,0.0001378,2]
[353088382,1739548240073,-500.0,0.0001378,2]
[353088384,1739548240083,-500.0,0.0001378,2]
[353088386,1739548240092,-500.0,0.0001378,2]
[353088387,1739548240101,-500.0,0.0001378,2]
[353088388,1739548240111,-500.0,0.0001378,2]
[353088389,1739548240120,-1188.85,0.0001378,2]
[353088390,1739548240130,-500.0,0.0001378,2]
[353088391,1739548240139,-508.2616777,0.0001378,2]
[353088392,1739548240149,-500.0,0.0001378,2]
[353088393,1739548240158,-500.0,0.0001378,2]
[353088394,1739548240167,-500.0,0.0001378,2]
[353088395,1739548240177,-1296.2,0.0001378,2]
[353088396,1739548240187,-1328.3,0.0001378,2]
[353088397,1739548240197,-657.1,0.0001378,2]
[353088398,1739548240206,-500.0,0.0001378,2]
[353088399,1739548240216,-573.7,0.0001378,2]
[353088400,1739548240226,-502.94758613,0.0001378,2]
[353088401,1739548240236,-500.0,0.0001378,2]
[353088402,1739548240247,-246.09000316,0.0001378,2]
[353088403,1739548240259,-500.0,0.0001378,2]
[353088404,1739548240270,-500.0,0.0001378,2]
[353088405,1739548240279,-500.0,0.0001378,2]
[353088406,1739548240290,-3328.97,0.0001378,2]
[353088407,1739548240299,-500.0,0.0001378,2]
[353088408,1739548240309,-500.0,0.0001378,2]
[353088409,1739548240319,-1624.75,0.0001378,2]
[353088410,1739548240330,-502.62087509,0.0001378,2]
[353088411,1739548240341,-500.0,0.0001378,2]
[353088412,1739548240350,-2491.72,0.0001378,2]
[353088413,1739548240360,-158.71,0.0001378,2]
[353088414,1739548240369,-1112.42,0.0001378,2]
[353088415,1739548240379,-506.87092836,0.0001378,2]
[353088416,1739548240389,-2263.22,0.0001378,2]
[353088418,1739548240399,-500.0,0.0001378,2]
[353088419,1739548240409,-3475.11,0.0001378,2]
[353088420,1739548240420,-655.86,0.0001378,2]
[353088422,1739548240430,-500.0,0.0001378,2]
[353088424,1739548240440,-1157.13,0.0001378,2]
[353088426,1739548240449,-6874.62,0.0001378,2]
[353088428,1739548240459,-500.0,0.0001378,2]
[353088430,1739548240469,-500.0,0.0001378,2]
[353088432,1739548240478,-1175.37,0.0001378,2]
[353088434,1739548240488,-500.0,0.0001378,2]
[353088436,1739548240498,-500.0,0.0001378,2]
[353088438,1739548240508,-793.74,0.0001378,2]
[353088440,1739548240518,-500.0,0.0001378,2]
[353088442,1739548240528,-1060.4,0.0001378,2]
[353088444,1739548240537,-500.0,0.0001378,2]
[353088458,1739548240661,-17230.79,0.0001378,2]
[353088461,1739548240671,-500.0,0.0001378,2]
[353088463,1739548240682,-500.0,0.0001378,2]
[353088465,1739548240691,-40253.48,0.0001378,2]
[353088467,1739548240701,-500.0,0.0001378,2]
[353088469,1739548240711,-653.6,0.0001378,2]
[353088471,1739548240721,-500.0,0.0001378,2]
[353088473,1739548240731,-4839.6,0.0001378,2]
[353088475,1739548240740,-3534.76,0.0001378,2]
[353088477,1739548240750,-500.0,0.0001378,2]
[353088479,1739548240760,-500.0,0.0001378,2]
[353088481,1739548240770,-1977.07,0.0001378,2]
[353088483,1739548240780,-500.0,0.0001378,2]
[353088485,1739548240789,-1832.21,0.0001378,2]
[353088487,1739548240799,-500.0,0.0001378,2]
[353088489,1739548240809,-1838.34,0.0001378,2]
[353088491,1739548240819,-500.0,0.0001378,2]
[353088493,1739548240829,-1264.2,0.0001378,2]
[353088495,1739548240838,-584.07,0.0001378,2]
[353088497,1739548240848,-1742.51,0.0001378,2]
[353088499,1739548240857,-500.0,0.0001378,2]
[353088501,1739548240867,-500.0,0.0001378,2]
[353088503,1739548240876,-500.0,0.0001378,2]
[353088505,1739548240885,-167.3974172,0.0001378,2]
[353088507,1739548240894,-500.0,0.0001378,2]
[353088509,1739548240904,-500.0,0.0001378,2]
[353088511,1739548240913,-502.52088211,0.0001378,2]
[353088513,1739548240922,-500.0,0.0001378,2]
[353088514,1739548240932,-517.97320949,0.0001378,2]
[353088516,1739548240942,-1213.81,0.0001378,2]
[353088518,1739548240951,-628.0,0.0001378,2]
[353088520,1739548240960,-503.20950647,0.0001378,2]
[353088522,1739548240970,-500.0,0.0001378,2]
[353088524,1739548240980,-507.09090585,0.0001378,2]
[353088526,1739548240990,-500.0,0.0001378,2]
[353088528,1739548240999,-1982.88,0.0001378,2]
[353088531,1739548241009,-501.17268667,0.0001378,2]
[353088532,1739548241019,-620.67284341,0.0001378,2]
[353088534,1739548241030,-359.07613809,0.0001378,2]
[353088536,1739548241040,-500.0,0.0001378,2]
[353088539,1739548241053,-500.0,0.0001378,2]
[353088541,1739548241063,-500.0,0.0001378,2]
[353088543,1739548241072,-503.50750254,0.0001378,2]
[353088545,1739548241082,-535.7,0.0001378,2]
[353088547,1739548241091,-500.0,0.0001378,2]
[353088549,1739548241101,-500.0,0.0001378,2]
[353088551,1739548241110,-3001.71,0.0001378,2]
[353088553,1739548241120,-3026.8,0.0001378,2]
[353088555,1739548241130,-648.27609817,0.0001378,2]
[353088557,1739548241139,-500.0,0.0001378,2]
[353088558,1739548241148,-500.0,0.0001378,2]
[353088560,1739548241158,-502.76553741,0.0001378,2]
[353088562,1739548241167,-747.42,0.0001378,2]
[353088565,1739548241178,-500.37,0.0001378,2]
[353088566,1739548241187,-1574.04,0.0001378,2]
[353088568,1739548241197,-7370.07,0.0001378,2]
[353088570,1739548241207,-500.0,0.0001378,2]
[353088572,1739548241218,-1509.92,0.0001378,2]
[353088574,1739548241228,-556.96,0.0001378,2]
[353088577,1739548241242,-500.0,0.0001378,2]
[353088578,1739548241252,-610.79751319,0.0001378,2]
[353088581,1739548241263,-500.0,0.0001378,2]
[353088583,1739548241272,-3907.88,0.0001378,2]
[353088585,1739548241283,-500.0,0.0001378,2]
[353088586,1739548241294,-11942.5,0.0001378,2]
[353088588,1739548241304,-153.579955,0.00013797,5]
[353088591,1739548241315,-151.0,0.000138,2]
[353088593,1739548241324,-151.0,0.000138,2]
[353088595,1739548241334,-151.0,0.000138,2]
[353088597,1739548241343,-151.0,0.000138,2]
[353088599,1739548241352,-500.0,0.00013863,2]
[353088601,1739548241362,-416.44259178,0.00013863,2]
[353088603,1739548241371,-500.0,0.00013863,2]
[353088604,1739548241381,-500.0,0.00013863,2]
[353088606,1739548241390,-500.0,0.00013863,2]
[353088609,1739548241400,-320.63034166,0.00013863,2]
[353088611,1739548241409,-355.9463624,0.00013863,2]
[353088613,1739548241418,-500.0,0.00013863,2]
[353088614,1739548241429,-885.72,0.00013863,2]
[353088616,1739548241438,-500.0,0.00013863,2]
[353088618,1739548241447,-1423.12,0.00013863,2]
[353088620,1739548241457,-602.52,0.00013863,2]
[353088623,1739548241467,-1592.63,0.00013863,2]
[353088624,1739548241476,-513.8,0.00013863,2]
[353088626,1739548241485,-708.68,0.00013863,2]
[353088628,1739548241495,-500.0,0.00013863,2]
[353088630,1739548241504,-359.64086363,0.00013863,2]
[353088632,1739548241514,-500.0,0.00013863,2]
[353088634,1739548241523,-1231.32,0.00013863,2]
[353088637,1739548241534,-500.0,0.00013863,2]
[353088639,1739548241544,-500.0,0.00013863,2]
[353088640,1739548241553,-500.0,0.00013863,2]
[353088643,1739548241562,-492.50337023,0.00013863,2]
[353088644,1739548241572,-500.0,0.00013863,2]
[353088646,1739548241582,-1560.1,0.00013863,2]
[353088649,1739548241592,-500.0,0.00013863,2]
[353088650,1739548241601,-573.61,0.00013863,2]
[353088652,1739548241611,-585.53,0.00013863,2]
[353088655,1739548241620,-512.87525425,0.00013863,2]
[353088657,1739548241629,-500.0,0.00013863,2]
[353088658,1739548241638,-500.0,0.00013863,2]
[353088660,1739548241648,-500.0,0.00013863,2]
[353088662,1739548241657,-1188.85,0.00013863,2]
[353088664,1739548241666,-1296.2,0.00013863,2]
[353088666,1739548241675,-1328.3,0.00013863,2]
[353088668,1739548241685,-657.1,0.00013863,2]
[353088670,1739548241695,-500.0,0.00013863,2]
[353088672,1739548241704,-573.7,0.00013863,2]
[353088674,1739548241713,-500.0,0.00013863,2]
[353088676,1739548241723,-500.0,0.00013863,2]
[353088678,1739548241732,-500.0,0.00013863,2]
[353088680,1739548241741,-3328.97,0.00013863,2]
[353088682,1739548241751,-500.0,0.00013863,2]
[353088684,1739548241760,-500.0,0.00013863,2]
[353088686,1739548241770,-1624.75,0.00013863,2]
[353088688,1739548241780,-500.0,0.00013863,2]
[353088690,1739548241790,-2491.72,0.00013863,2]
[353088692,1739548241801,-1112.42,0.00013863,2]
[353088694,1739548241811,-2263.22,0.00013863,2]
[353088696,1739548241821,-3475.11,0.00013863,2]
[353088699,1739548241831,-655.86,0.00013863,2]
[353088701,1739548241841,-503.90206591,0.00013863,2]
[353088702,1739548241850,-1157.13,0.00013863,2]
[353088704,1739548241860,-6874.62,0.00013863,2]
[353088706,1739548241869,-500.0,0.00013863,2]
[353088708,1739548241879,-500.0,0.00013863,2]
[353088710,1739548241889,-1175.37,0.00013863,2]
[353088712,1739548241898,-500.0,0.00013863,2]
[353088714,1739548241908,-500.0,0.00013863,2]
[353088716,1739548241917,-793.74,0.00013863,2]
[353088718,1739548241927,-500.0,0.00013863,2]
[353088720,1739548241936,-1060.4,0.00013863,2]
[353088722,1739548241946,-500.0,0.00013863,2]
[353088724,1739548241955,-17230.79,0.00013863,2]
[353088726,1739548241965,-419.73504551,0.00013863,2]
[353088728,1739548241975,-503.7709852,0.00013863,2]
[353088730,1739548241984,-40253.48,0.00013863,2]
[353088732,1739548241994,-500.0,0.00013863,2]
[353088734,1739548242003,-653.6,0.00013863,2]
[353088736,1739548242012,-500.0,0.00013863,2]
[353088738,1739548242022,-4839.6,0.00013863,2]
[353088740,1739548242032,-3534.76,0.00013863,2]
[353088742,1739548242043,-500.0,0.00013863,2]
[353088744,1739548242055,-428.35306669,0.00013863,2]
[353088746,1739548242064,-1977.07,0.00013863,2]
[353088748,1739548242073,-306.57359155,0.00013863,2]
[353088750,1739548242082,-1832.21,0.00013863,2]
[353088752,1739548242091,-500.0,0.00013863,2]
[353088754,1739548242100,-1838.34,0.00013863,2]
[353088756,1739548242109,-500.0,0.00013863,2]
[353088758,1739548242119,-1264.2,0.00013863,2]
[353088760,1739548242128,-584.07,0.00013863,2]
[353088762,1739548242138,-1742.51,0.00013863,2]
[353088764,1739548242147,-500.0,0.00013863,2]
[353088765,1739548242159,-500.0,0.00013863,2]
[353088767,1739548242168,-500.0,0.00013863,2]
[353088770,1739548242178,-500.0,0.00013863,2]
[353088772,1739548242188,-500.0,0.00013863,2]
[353088773,1739548242197,-1213.81,0.00013863,2]
[353088775,1739548242207,-628.0,0.00013863,2]
[353088777,1739548242216,-500.0,0.00013863,2]
[353088779,1739548242226,-1982.88,0.00013863,2]
[353088781,1739548242235,-500.0,0.00013863,2]
[353088783,1739548242245,-500.0,0.00013863,2]
[353088785,1739548242257,-535.7,0.00013863,2]
[353088787,1739548242266,-500.0,0.00013863,2]
[353088789,1739548242276,-500.0,0.00013863,2]
[353088791,1739548242286,-3001.71,0.00013863,2]
[353088793,1739548242300,-3026.8,0.00013863,2]
[353088795,1739548242309,-409.64694853,0.00013863,2]
[353088797,1739548242318,-500.0,0.00013863,2]
[353088799,1739548242329,-747.42,0.00013863,2]
[353088801,1739548242341,-500.37,0.00013863,2]
[353088803,1739548242350,-1574.04,0.00013863,2]
[353088805,1739548242360,-7370.07,0.00013863,2]
[353088807,1739548242370,-643.82150707,0.00013863,2]
[353088809,1739548242379,-1509.92,0.00013863,2]
[353088811,1739548242389,-556.96,0.00013863,2]
[353088813,1739548242399,-500.0,0.00013863,2]
[353088815,1739548242408,-500.0,0.00013863,2]
[353088817,1739548242418,-3907.88,0.00013863,2]
[353088819,1739548242427,-500.0,0.00013863,2]
[353088821,1739548242437,-12916.45658346,0.00013875,2]
[353088823,1739548242447,-151.0,0.000139,2]
[353088825,1739548242456,-151.0,0.000139,2]
[353088827,1739548242466,-151.0,0.000139,2]
[353088829,1739548242475,-151.0,0.000139,2]
[353088831,1739548242485,-151.0,0.000139,2]
[353088833,1739548242494,-153.0,0.00013903,2]
[353088835,1739548242504,-153.0,0.00013903,2]
[353088837,1739548242513,-153.0,0.00013903,2]
[353088839,1739548242523,-153.0,0.00013903,2]
[353088841,1739548242532,-153.0,0.00013903,2]
[353088843,1739548242541,-1933.8558936,0.00013937,2]
[353088845,1739548242553,-500.0,0.00013944,2]
[353088847,1739548242564,-500.0,0.00013944,2]
[353088849,1739548242573,-342.45871145,0.00013944,2]
[353088851,1739548242583,-500.0,0.00013945,2]
[353088853,1739548242593,-500.0,0.00013945,2]
[353088855,1739548242603,-500.0,0.00013945,2]
[353088857,1739548242613,-500.0,0.00013945,2]
[353088859,1739548242623,-885.72,0.00013945,2]
[353088861,1739548242633,-1423.12,0.00013945,2]
[353088863,1739548242643,-602.52,0.00013945,2]
[353088865,1739548242653,-755.62929571,0.00013945,2]
[353088890,1739548242808,-837.00070429,0.00013945,2]
[353088893,1739548242819,-513.8,0.00013945,2]
[353088896,1739548242829,-708.68,0.00013945,2]
[353088898,1739548242839,-500.0,0.00013945,2]
[353088899,1739548242848,-1231.32,0.00013945,2]
[353088901,1739548242858,-500.0,0.00013945,2]
[353088903,1739548242868,-508.44434658,0.00013945,2]
[353088920,1739548243009,-1560.1,0.00013945,2]
[353088922,1739548243019,-500.0,0.00013945,2]
[353088924,1739548243029,-573.61,0.00013945,2]
[353088926,1739548243039,-585.53,0.00013945,2]
[353088928,1739548243052,-500.0,0.00013945,2]
[353088930,1739548243062,-500.0,0.00013945,2]
[353088932,1739548243071,-500.0,0.00013945,2]
[353088934,1739548243080,-1188.85,0.00013945,2]
[353088936,1739548243090,-1200.84316464,0.00013945,2]
[353088938,1739548243103,-95.35683536,0.00013945,2]
[353088940,1739548243112,-1328.3,0.00013945,2]
[353088942,1739548243121,-657.1,0.00013945,2]
[353088944,1739548243131,-17.40017179,0.00013945,2]
[353088955,1739548243389,-595.65711148,0.00013698,2]
[353088962,1739548243489,-80.41288852,0.00013698,2]
[353088964,1739548243500,-531.42,0.0001378,2]
[353088966,1739548243509,-280.99750119,0.0001378,2]
[353089098,1739548244866,-500.0,0.00013698,2]
[353089100,1739548244876,-396.08985287,0.00013698,2]
[353089102,1739548244885,-500.0,0.00013698,2]
[353089105,1739548244895,-973.37,0.00013698,2]
[353089108,1739548244904,-395.07249881,0.0001378,2]
[353089110,1739548244914,-500.0,0.0001378,2]
[353089112,1739548244923,-11942.5,0.00013863,2]
[353089114,1739548244932,-531.42,0.00013863,2]